bitfinex-derivatives/quotes_ETHF0:USTF0_20250331
["timestamp","ask_amount","ask_price","bid_price","bid_amount"]
[1743381008553,1.10904,1803.5,1803.4,5.4295]
[1743381008751,1.10904,1803.5,1803.4,3.944]
[1743381009354,2.57454,1803.5,1803.4,3.944]
[1743381009549,1.1091,1803.4,1803.3,3.2078]
[1743381009850,1.10941,1802.9,1802.8,3.21612638]
[1743381010158,1.10941,1802.9,1802.8,0.00832638]
[1743381010652,10.76121,1802.9,1802.8,1e-08]
[1743381011049,8.26121,1802.9,1802.8,1e-08]
[1743381011759,8.95681,1802.9,1802.8,1e-08]
[1743381012556,11.45681,1802.9,1802.8,1e-08]
[1743381014458,1.11002,1801.9,1801.8,7.8921]
[1743381014660,3.945,1801.9,1801.2,9.736]
[1743381014855,1.11041,1801.3,1801.0,4.31836]
[1743381015055,1.11044,1801.3,1801.0,4.31837]
[1743381015355,1.11045,1801.3,1801.0,30.8078]
[1743381015553,1.11045,1801.3,1801.0,30.81612638]
[1743381015554,1.11877638,1801.3,1801.0,30.81612638]
[1743381015750,0.00832638,1801.3,1801.1,1.11049]
[1743381015955,1.11872638,1801.3,1801.0,4.32666638]
[1743381016162,1.11872638,1801.3,1801.0,3.21612638]
[1743381016163,0.00832638,1801.3,1801.0,3.21612638]
[1743381016459,1.11048,1801.2,1801.0,7.16212638]
[1743381016855,0.00832638,1801.3,1801.0,7.16212638]
[1743381017056,1.11875638,1801.3,1801.0,8.82870638]
[1743381017358,0.00832638,1801.3,1801.0,7.16212638]
[1743381017553,1.11874638,1801.3,1801.0,8.27264638]
[1743381017749,3.2078,1801.8,1801.2,3.2078]
[1743381017957,0.6837,1802.2,1801.5,3.2078]
[1743381018252,1.11003,1801.9,1801.7,3.2078]
[1743381018448,1.11008,1801.8,1801.7,3.2078]
[1743381019453,2.61898,1801.8,1801.7,3.2078]
[1743381020462,2.61898,1801.8,1801.5,1.11025]
[1743381020671,0.00832638,1801.9,1801.8,1.11008]
[1743381020960,1.10995,1802.1,1801.8,1.11007]
[1743381021162,1.10995,1802.1,1801.9,0.7295]
[1743381021863,1.10996,1802.0,1801.9,0.7295]
[1743381028066,1.11021,1801.6,1801.5,3.2078]
[1743381028270,2.77522,1801.9,1801.4,4.5964]
[1743381028271,1.11027,1801.5,1801.4,4.5964]
[1743381028462,1.4224,1801.8,1801.5,1.11026]
[1743381028663,1.11015,1801.7,1801.6,1.3886]
[1743381028966,0.00832638,1802.2,1801.6,11.68900839]
[1743381029271,1.4224,1802.1,1801.6,12.79919839]
[1743381029456,1.11015,1801.8,1801.6,11.68900839]
[1743381029660,1.11015,1801.8,1801.7,1.3886]
[1743381030668,9.3083,1802.1,1801.4,4.6597]
[1743381030871,9.3083,1802.1,1801.6,4.31798]
[1743381030872,1.11013,1801.8,1801.6,4.31798]
[1743381031066,1.11013,1801.8,1801.7,1.4519]
[1743381035872,0.00832638,1802.2,1802.1,1.1099]
[1743381036170,0.00832638,1802.2,1801.9,6.53921]
[1743381036171,1.1099,1802.1,1801.9,6.53921]
[1743381036370,1.1099,1802.1,1802.0,0.00832638]
[1743381036566,1.1099,1802.1,1802.0,1.11828638]
[1743381036872,1.1099,1802.1,1802.0,1.48732638]
[1743381037267,1.1099,1802.1,1802.0,2.59728638]
[1743381037465,0.00832638,1802.2,1802.1,1.1099]
[1743381037673,1.1097,1802.5,1802.2,1.10979]
[1743381037869,2.61373,1802.6,1802.4,3.2078]
[1743381038068,3.2078,1802.9,1802.5,2.2048]
[1743381038269,1.10959,1802.6,1802.5,2.2048]
[1743381038674,1.5041,1802.8,1802.5,2.2048]
[1743381038876,1.10959,1802.6,1802.5,2.2048]
[1743381039972,1.5041,1802.8,1802.5,2.2048]
[1743381040169,1.10959,1802.6,1802.5,2.2048]
[1743381041382,1.10976,1802.4,1802.2,3.946]
[1743381041675,1.10976,1802.4,1802.3,1.5129]
[1743381041883,2.58909,1802.5,1802.3,2.62266]
[1743381042275,2.58909,1802.5,1802.4,1.5129]
[1743381044183,1.10978,1802.3,1802.2,4.6615]
[1743381044378,1.10978,1802.3,1802.2,6.1645]
[1743381045675,1.10984,1802.2,1802.1,3.2078]
[1743381045879,1.1099,1802.1,1802.0,1.42232638]
[1743381046083,1.1099,1802.1,1802.0,0.00832638]
[1743381046270,4.3177,1802.1,1802.0,1e-08]
[1743381046474,5.045,1802.1,1802.0,1e-08]
[1743381046676,6.5467,1802.1,1802.0,1e-08]
[1743381047080,12.9917,1802.1,1802.0,1e-08]
[1743381049382,1.11052,1801.1,1801.0,3.2078]
[1743381049681,1.11052,1801.1,1801.0,1.4708]
[1743381050386,1.41222638,1801.2,1800.9,0.00832638]
[1743381050687,1.11052,1801.1,1801.0,1.4708]
[1743381051683,0.00832638,1801.2,1801.0,1.4708]
[1743381051893,1.11879638,1801.2,1801.0,1.4708]
[1743381052189,1.11037,1801.4,1801.1,11.49861893]
[1743381052375,1.1103,1801.5,1801.2,2.59474]
[1743381052690,1.11034,1801.4,1801.2,2.59474]
[1743381052888,1.11034,1801.4,1801.3,0.7217]
[1743381053687,1.11028,1801.5,1801.3,1.83205]
[1743381053984,1.11028,1801.5,1801.4,1.4843]
[1743381054487,1.11033,1801.4,1801.3,3.9295]
[1743381054688,1.11033,1801.4,1801.3,5.3701]
[1743381054891,1.11029,1801.5,1801.3,5.3701]
[1743381055083,1.11025,1801.6,1801.4,2.55092]
[1743381055288,1.11027,1801.5,1801.4,1.4406]
[1743381055488,0.6953,1801.8,1801.4,1.4406]
[1743381055879,1.1102,1801.7,1801.4,2.5509]
[1743381056091,3.2078,1801.9,1801.5,3.2078]
[1743381056284,3.2078,1801.9,1801.6,1.4406]
[1743381056485,1.11015,1801.7,1801.6,1.4406]
[1743381057787,3.2078,1802.3,1801.6,1.4406]
[1743381057986,1.10986,1802.2,1801.8,3.2078]
[1743381058183,1.10996,1802.0,1801.9,6.0884]
[1743381059396,1.10996,1802.0,1801.9,3.946]
[1743381059590,1.11002,1801.9,1801.8,3.21612638]
[1743381059989,3.2078,1802.3,1801.8,4.63612638]
[1743381060189,1.4605,1802.6,1802.0,4.31773]
[1743381060392,1.10982,1802.3,1802.1,2.52987]
[1743381060590,1.10982,1802.3,1802.2,1.42]
[1743381060991,1.1099,1802.1,1802.0,7.1538]
[1743381061191,1.1099,1802.1,1802.0,8.6177]
[1743381061694,1.1099,1802.1,1802.0,3.2078]
[1743381061891,1.1099,1802.1,1802.0,4.6717]
[1743381062394,1.1099,1802.1,1802.0,3.2078]
[1743381062796,1.10996,1802.0,1801.9,2.1863]
[1743381064597,1.10992,1802.1,1801.9,3.29629]
[1743381064800,1.10992,1802.1,1802.0,3.2078]
[1743381064992,1.10992,1802.1,1802.0,4.6623]
[1743381065296,1.1099,1802.1,1802.0,4.6623]
[1743381065996,1.1099,1802.1,1802.0,1.4545]
[1743381066199,1.10996,1802.0,1801.9,0.7224]
[1743381066397,2.59866,1802.0,1801.9,0.7224]
[1743381066791,1.11002,1801.9,1801.8,3.21612638]
[1743381066991,2.51142,1801.9,1801.8,0.00832638]
[1743381069790,2.51142,1801.9,1801.8,4.64012638]
[1743381071495,3.2078,1802.3,1801.8,4.64012638]
[1743381071796,5.03821,1802.6,1802.4,1.10969]
[1743381071992,2.55338,1802.5,1802.3,1.10975]
[1743381072301,1.10978,1802.3,1802.2,2.1934]
[1743381072599,1.10978,1802.3,1801.9,3.9465]
[1743381072600,2.77445,1802.3,1801.9,3.9465]
[1743381072896,1.10996,1802.0,1801.9,4.6789]
[1743381073994,1.10996,1802.0,1801.9,3.2078]
[1743381074688,1.4448,1802.1,1801.8,0.00832638]
[1743381074689,1.11002,1801.9,1801.8,0.00832638]
[1743381074889,1.11039,1801.3,1801.2,3.2078]
[1743381075096,1.11039,1801.3,1801.2,4.6574]
[1743381075298,1.11039,1801.3,1801.2,1.4496]
[1743381075494,1.11039,1801.3,1801.0,60.6107]
[1743381075692,1.11052,1801.1,1801.0,56.6657]
[1743381075889,1.4448,1801.2,1800.8,3.8957]
[1743381075890,1.11064,1800.9,1800.8,3.8957]
[1743381076090,1.11064,1800.9,1800.8,5.3396]
[1743381076697,1.1107,1800.8,1800.7,0.00832638]
[1743381078399,1.1107,1800.8,1800.7,1e-08]
[1743381078993,4.5901,1801.0,1800.7,1e-08]
[1743381079299,1.1107,1800.8,1800.7,1e-08]
[1743381082499,4.5901,1801.0,1800.7,1e-08]
[1743381082500,2.49292,1801.0,1800.7,1.11072001]
[1743381082704,2.49292,1801.0,1800.7,2.16260001]
[1743381082705,1.11068,1800.9,1800.7,2.16260001]
[1743381082900,1.11068,1800.9,1800.7,6.10860001]
[1743381083204,1.1107,1800.8,1800.7,6.10860001]
[1743381083501,1.1107,1800.8,1800.7,1e-08]
[1743381087505,1.1107,1800.8,1800.7,1.37220001]
[1743381087899,1.1107,1800.8,1800.7,1e-08]
[1743381090209,2.5449,1800.8,1800.7,1e-08]
[1743381090712,5.7527,1800.8,1800.7,1e-08]
[1743381091010,8.2527,1800.8,1800.7,1e-08]
[1743381091403,12.1987,1800.8,1800.7,1e-08]
[1743381091598,5.7527,1800.8,1800.7,1e-08]
[1743381092813,7.142,1800.8,1799.4,0.42014297]
[1743381093009,1.11138,1799.7,1799.6,1.4012]
[1743381094613,2.51568,1799.7,1799.6,1.4012]
[1743381094913,2.51568,1799.7,1799.5,3.21612638]
[1743381094914,1.11144,1799.6,1799.5,1e-08]
[1743381095107,2.51574,1799.6,1799.5,1e-08]
[1743381095809,5.72354,1799.6,1799.5,1e-08]
[1743381096314,1.11181,1799.0,1798.9,3.2078]
[1743381096616,1.11225,1798.3,1798.2,1.38]
[1743381097309,1.11243,1798.0,1797.9,1.38]
[1743381097512,1.4851,1798.2,1797.9,4.5878]
[1743381097809,1.11243,1798.0,1797.9,4.5878]
[1743381098017,1.11243,1798.0,1797.9,3.2078]
[1743381098210,4.32831638,1798.4,1798.0,1.11238]
[1743381098402,1.11228,1798.3,1798.1,1.4034]
[1743381098818,1.11231,1798.2,1798.1,1.4034]
[1743381099206,3.2078,1799.1,1798.2,2.78078]
[1743381099412,1.4851,1799.2,1798.8,3.2078]
[1743381099709,4.062,1799.1,1798.6,3.2078]
[1743381099909,1.4851,1799.0,1798.4,3.2078]
[1743381100216,1.11196,1798.8,1798.6,3.2078]
[1743381100421,1.11198,1798.8,1798.6,3.2078]
[1743381100604,0.00832638,1798.9,1798.6,3.2078]
[1743381100819,1.11196,1798.8,1798.5,1.41172638]
[1743381101008,1.12023638,1798.9,1798.7,3.2078]
[1743381101204,0.00832638,1798.9,1798.8,1.3939]
[1743381101619,1.12019638,1798.9,1798.8,1.3939]
[1743381102114,0.00832638,1798.9,1798.8,1.3939]
[1743381102320,1.11206,1798.6,1798.5,3.21612638]
[1743381102614,5.18906,1798.6,1798.5,0.00832638]
[1743381104514,1.3833,1798.7,1798.5,0.00832638]
[1743381104712,1.11206,1798.6,1798.5,0.00832638]
[1743381105519,1.3833,1798.7,1798.5,0.00832638]
[1743381105723,1.11206,1798.6,1798.5,3.21612638]
[1743381106215,1.11202,1798.7,1798.5,3.21612638]
[1743381106421,1.11202,1798.7,1798.6,1.3808]
[1743381107117,1.43162638,1798.9,1798.6,1.3808]
[1743381107418,1.11206,1798.6,1798.5,0.00832638]
[1743381108124,1.11206,1798.6,1798.5,1.38912638]
[1743381108515,0.00832638,1798.9,1798.5,3.88912638]
[1743381108717,1.12020638,1798.9,1798.7,4.31976]
[1743381108915,0.00832638,1798.9,1798.8,1.3808]
[1743381109113,0.00832638,1798.9,1798.8,2.49274]
[1743381109318,0.00832638,1798.9,1798.8,1.3808]
[1743381109525,1.12019638,1798.9,1798.8,1.3808]
[1743381110314,1.112,1798.7,1798.6,0.7568]
[1743381110516,1.11196,1798.8,1798.6,2.2055]
[1743381110711,0.00832638,1798.9,1798.7,1.4487]
[1743381111024,1.11194,1798.8,1798.7,1.4487]
[1743381111320,1.11206,1798.6,1798.5,0.00832638]
[1743381111524,5.23606,1798.6,1798.5,0.00832638]
[1743381112118,8.44386,1798.6,1798.5,0.00832638]
[1743381112317,8.44386,1798.6,1797.8,1.11252]
[1743381112318,1.11249,1797.9,1797.8,3.2078]
[1743381112517,1.11268,1797.6,1797.5,3.2078]
[1743381113620,1.11274,1797.5,1797.4,0.00832638]
[1743381113821,1.11299,1797.1,1796.9,30.8078]
[1743381114126,1.11299,1797.1,1797.0,1.4531]
[1743381114325,2.5,1797.1,1796.7,3.2078]
[1743381114523,4.128,1797.4,1796.5,4.32111]
[1743381114524,1.11315,1796.9,1796.5,4.32111]
[1743381114822,1.11292,1797.3,1796.8,1.11315]
[1743381115027,1.3893,1797.4,1797.0,3.2078]
[1743381115321,4.152,1797.8,1797.2,3.2078]
[1743381115523,4.152,1797.8,1797.3,1.3985]
[1743381115524,0.00832638,1797.4,1797.3,1.3985]
[1743381115833,0.00832638,1797.4,1797.3,4.6063]
[1743381116124,1.12112638,1797.4,1797.3,4.6063]
[1743381116423,1.11297,1797.2,1797.0,4.6063]
[1743381116624,1.11299,1797.1,1797.0,4.6063]
[1743381116821,1.11311,1796.9,1796.7,0.7067]
[1743381117024,4.162,1797.3,1796.8,4.6063]
[1743381117327,1.11295,1797.2,1797.0,3.2078]
[1743381117523,1.44322638,1797.4,1796.8,3.2078]
[1743381117728,1.11309,1797.0,1796.8,3.2078]
[1743381117925,1.11301,1797.1,1796.9,1.3985]
[1743381118125,0.00832638,1797.4,1797.0,3.2078]
[1743381118428,6.40435391,1798.4,1797.4,1.11275]
[1743381118429,1.11258,1797.8,1797.4,1.11275]
[1743381118624,4.6036,1798.3,1797.6,3.2078]
[1743381118925,1.11246,1798.0,1797.8,3.2078]
[1743381119222,1.3958,1798.3,1797.9,1.4547]
[1743381119427,1.11243,1798.0,1797.9,1.4547]
[1743381119625,1.12073638,1798.1,1797.9,1.4547]
[1743381120021,1.11243,1798.0,1797.9,1.4547]
[1743381120717,0.00832638,1798.1,1797.9,1.4547]
[1743381121325,1.12071638,1798.1,1798.0,3.2078]
[1743381121528,1.11243,1798.0,1797.9,1.4547]
[1743381122131,1.11255,1797.8,1797.7,0.00832638]
[1743381122929,2.48005,1797.8,1797.7,0.00832638]
[1743381123623,1.1128,1797.4,1797.3,3.2078]
[1743381124325,1.11305,1797.0,1796.9,4.198]
[1743381124525,1.11305,1797.0,1796.9,1.4877]
[1743381124827,0.00832638,1797.1,1796.9,2.60076]
[1743381125023,0.00832638,1797.1,1797.0,8.52185]
[1743381125233,0.00832638,1797.1,1797.0,7.4088]
[1743381125731,0.00832638,1797.1,1797.0,8.7755]
[1743381126826,0.00832638,1797.1,1797.0,5.68755]
[1743381127021,1.11281,1797.4,1797.1,1.11296]
[1743381127222,1.11281,1797.4,1797.3,3.2078]
[1743381128833,0.00832638,1797.5,1797.3,4.32066]
[1743381129027,0.00832638,1797.5,1797.4,2.5183]
[1743381129227,0.00832638,1797.5,1797.4,1.4055]
[1743381129433,0.00832638,1797.5,1797.4,2.5183]
[1743381129633,0.00832638,1797.5,1797.4,1.4055]
[1743381130237,1.12106638,1797.5,1797.4,2.1333]
[1743381130942,0.00832638,1797.5,1797.4,2.1333]
[1743381131244,0.00832638,1797.5,1797.4,7.4311]
[1743381132146,1.12106638,1797.5,1797.4,6.3183]
[1743381134349,0.00832638,1797.5,1797.4,7.4311]
[1743381134546,5.55968,1798.9,1797.4,7.4311]
[1743381134547,1.493,1798.0,1797.4,6.3183]
[1743381134742,1.11267,1797.7,1797.6,3.2078]
[1743381134948,1.11259,1797.8,1797.6,3.2078]
[1743381135252,1.11248,1798.0,1797.7,4.174]
[1743381135450,1.493,1798.2,1797.8,5.01571]
[1743381135647,0.00832638,1798.0,1797.9,1.11249]
[1743381135843,0.00832638,1798.0,1797.8,5.01573]
[1743381136043,0.00832638,1798.0,1797.8,5.0157]
[1743381136249,1.11249,1797.9,1797.8,3.9032]
[1743381137848,0.00832638,1798.0,1797.8,5.01574]
[1743381138056,1.12075638,1798.0,1797.8,5.01571]
[1743381138255,1.11249,1797.9,1797.8,3.9032]
[1743381138554,2.48599,1797.9,1797.8,3.9032]
[1743381138848,1.11255,1797.8,1797.7,0.00832638]
[1743381139053,2.48605,1797.8,1797.7,0.00832638]
[1743381139249,2.48605,1797.8,1797.4,3.2078]
[1743381139250,1.11299,1797.1,1797.0,3.8909]
[1743381139450,1.11299,1797.1,1797.0,0.6831]
[1743381139848,1.3735,1797.2,1797.0,0.6831]
[1743381140047,2.48647,1797.2,1797.0,1.79615]
[1743381140254,7.3928,1797.5,1797.0,1.79615]
[1743381140255,1.11299,1797.1,1797.0,0.6831]
[1743381140659,1.11305,1797.0,1796.9,7.39812638]
[1743381140954,1.11305,1797.0,1796.9,0.00832638]
[1743381141155,1.113,1797.1,1796.9,3.21612638]
[1743381141350,1.4337,1797.3,1796.9,3.21612638]
[1743381141550,1.11282,1797.4,1797.2,1.1129]
[1743381141745,1.11278,1797.5,1797.3,0.7304]
[1743381141950,1.1128,1797.4,1797.3,3.9382]
[1743381142150,1.4337,1797.6,1797.3,3.9382]
[1743381142151,1.4337,1797.6,1797.3,8.1212]
[1743381142352,1.4337,1797.8,1797.5,3.2078]
[1743381142555,1.11255,1797.8,1797.7,3.2078]
[1743381142962,1.11262,1797.7,1797.6,4.185]
[1743381143159,1.4337,1797.9,1797.6,4.185]
[1743381143455,1.11256,1797.8,1797.7,3.2078]
[1743381143654,1.4337,1797.9,1797.6,4.185]
[1743381143850,1.11258,1797.8,1797.6,5.29768]
[1743381144050,1.11258,1797.8,1797.7,3.2078]
[1743381144250,1.11255,1797.8,1797.7,3.2078]
[1743381144647,1.11255,1797.8,1797.6,4.185]
[1743381144954,1.1128,1797.4,1797.3,3.9382]
[1743381145155,1.1128,1797.4,1797.3,0.7304]
[1743381145351,1.1128,1797.4,1797.3,3.9382]
[1743381145659,1.11272,1797.6,1797.3,5.05103]
[1743381145957,1.4865,1797.7,1797.3,3.9382]
[1743381146154,1.4865,1797.7,1797.5,4.32053]
[1743381146355,1.11249,1797.9,1797.7,1.1126]
[1743381146561,1.11262,1797.7,1797.6,1.3906]
[1743381146755,1.4708,1797.9,1797.6,1.3906]
[1743381147054,2.58333,1797.9,1797.6,1.3906]
[1743381147258,2.58333,1797.9,1797.7,4.3204]
[1743381147457,2.58333,1797.9,1797.8,1.3906]
[1743381147649,1.1128,1797.4,1797.3,3.9382]
[1743381147961,1.4708,1797.9,1797.3,3.9382]
[1743381147962,1.11271,1797.6,1797.4,1.11278]
[1743381148157,1.11268,1797.6,1797.5,4.5984]
[1743381150559,1.11268,1797.6,1797.5,1.3906]
[1743381151357,1.1128,1797.4,1797.3,8.1572]
[1743381151654,1.1128,1797.4,1797.3,5.4213]
[1743381154361,1.11299,1797.1,1797.0,3.2078]
[1743381154557,1.11305,1797.0,1796.9,1.47112638]
[1743381155363,2.49153,1797.1,1796.9,2.58423638]
[1743381155663,1.3785,1797.1,1796.9,1.47112638]
[1743381155962,1.11295,1797.2,1797.0,4.32079]
[1743381156158,1.11295,1797.2,1797.1,1.4629]
[1743381156764,2.6286,1797.3,1797.1,2.57587]
[1743381156958,4.202,1797.9,1797.2,3.2078]
[1743381157161,1.5157,1797.7,1797.6,3.2078]
[1743381157464,1.5157,1797.7,1797.6,4.32048]
[1743381157853,0.00832638,1798.0,1797.6,7.4078]
[1743381158059,3.9075,1798.5,1797.8,3.2078]
[1743381158254,1.4053,1798.3,1798.0,4.32021]
[1743381158463,1.4053,1798.3,1798.1,1.3798]
[1743381158663,1.11231,1798.2,1798.1,1.3798]
[1743381158858,1.4053,1798.3,1797.8,7.16754898]
[1743381159066,1.11249,1797.9,1797.8,1.3798]
[1743381160061,1.11248,1798.0,1797.8,1.3798]
[1743381160259,1.11249,1797.9,1797.8,1.3798]
[1743381160460,1.11248,1798.0,1797.8,1.3798]
[1743381160660,1.11249,1797.9,1797.8,1.3798]
[1743381161255,1.4053,1798.1,1797.7,8.84962638]
[1743381161256,1.11255,1797.8,1797.7,3.21612638]
[1743381161556,1.11244,1798.0,1797.8,7.29084037]
[1743381161758,1.11244,1798.0,1797.9,4.206]
[1743381161964,1.11244,1798.0,1797.9,5.5801]
[1743381162661,0.00832638,1798.2,1797.9,8.7879]
[1743381162862,0.00832638,1798.2,1798.1,4.32017]
[1743381163062,0.00832638,1798.2,1798.1,5.69427]
[1743381163259,1.12063638,1798.2,1798.1,4.5819]
[1743381163562,1.12063638,1798.2,1798.1,3.2078]
[1743381163766,0.00832638,1798.2,1797.8,8.7909]
[1743381163961,1.11246,1798.0,1797.9,1.3741]
[1743381164370,1.51812638,1798.2,1797.9,1.3741]
[1743381164559,1.11243,1798.0,1797.9,1.3741]
[1743381165466,1.51812638,1798.2,1797.9,2.48657]
[1743381165766,0.00832638,1798.2,1798.0,4.32019]
[1743381165955,0.00832638,1798.2,1798.1,6.291]
[1743381166158,2.51853638,1798.2,1798.1,6.291]
[1743381166353,0.00832638,1798.2,1798.1,7.40337]
[1743381167067,1.3979,1798.6,1798.1,15.98087245]
[1743381167265,1.11217,1798.5,1798.4,3.2078]
[1743381167473,1.11217,1798.5,1798.4,7.4078]
[1743381167772,2.50998,1798.6,1798.4,8.52997]
[1743381168065,2.50998,1798.6,1798.5,1.449]
[1743381168369,1.11212,1798.5,1798.4,7.4178]
[1743381168568,2.62532,1798.5,1798.4,3.2078]
[1743381169167,1.11225,1798.3,1798.2,5.656]
[1743381173469,1.5132,1798.5,1798.1,3.8983]
[1743381173675,1.11249,1797.9,1797.8,2.1517]
[1743381173869,1.11249,1797.9,1797.8,6.3327]
[1743381174071,1.11249,1797.9,1797.8,13.71996381]
[1743381174373,4.26291,1798.2,1797.8,13.71996381]
[1743381174374,1.11247,1798.0,1797.8,18.04031381]
[1743381174573,1.4821,1798.2,1798.0,1.11241]
[1743381174765,6.96941638,1798.7,1798.0,3.2078]
[1743381174766,10.17121638,1798.7,1798.0,3.2078]
[1743381174968,10.17121638,1798.7,1798.2,3.2078]
[1743381174969,1.11231,1798.3,1798.2,3.2078]
[1743381175378,1.11231,1798.2,1798.1,4.177]
[1743381176275,4.26259,1798.4,1798.1,4.177]
[1743381176276,1.4821,1798.4,1798.1,4.177]
[1743381176472,2.59431,1798.4,1798.2,4.32008]
[1743381176673,1.11225,1798.3,1798.2,3.2078]
[1743381177177,2.59432,1798.4,1798.2,4.32009]
[1743381177375,1.11225,1798.3,1798.2,3.2078]
[1743381177571,1.11231,1798.2,1798.1,4.177]
[1743381178071,1.11228,1798.3,1798.1,4.177]
[1743381178374,3.21612638,1798.7,1798.3,1.1122]
[1743381178573,1.11217,1798.5,1798.3,1.1122]
[1743381178772,1.11217,1798.5,1798.4,3.2078]
[1743381179271,2.54389,1798.6,1798.4,4.31997]
[1743381179477,1.11212,1798.5,1798.4,7.3818]
[1743381180078,2.54391,1798.6,1798.4,8.49398]
[1743381180379,2.54388,1798.6,1798.4,8.49395]
[1743381180581,1.12033638,1798.7,1798.5,1.11209]
[1743381180873,1.12033638,1798.7,1798.6,4.31986]
[1743381180874,0.00832638,1798.7,1798.6,4.31986]
[1743381181078,0.00832638,1798.7,1798.6,11.44099944]
[1743381181579,0.00832638,1798.7,1798.6,4.31986]
[1743381182081,1.12032638,1798.7,1798.6,3.2078]
[1743381182276,2.56662638,1798.7,1798.6,3.2078]
[1743381182776,1.45462638,1798.7,1798.6,4.31986]
[1743381183077,0.00832638,1798.7,1798.6,11.41235441]
[1743381183280,0.00832638,1798.7,1798.6,10.30029441]
[1743381183573,0.00832638,1798.7,1798.6,11.41235441]
[1743381184676,0.00832638,1798.7,1798.4,4.174]
[1743381184677,0.00832638,1798.7,1798.5,4.165]
[1743381184878,1.11206,1798.6,1798.5,4.165]
[1743381185074,2.57456,1798.6,1798.5,4.165]
[1743381185676,1.11212,1798.5,1798.4,3.2078]
[1743381185877,1.11243,1798.0,1797.9,3.9325]
[1743381186082,1.11242,1798.1,1797.9,0.7247]
[1743381186381,1.11255,1797.8,1797.7,0.00832638]
[1743381186573,1.11255,1797.8,1797.7,1.44132638]
[1743381189079,1.11253,1797.9,1797.7,1.44132638]
[1743381189285,1.463,1797.8,1797.7,2.55394638]
[1743381189485,0.6844,1798.3,1797.8,1.11251]
[1743381189786,1.1124,1798.1,1797.9,8.7944]
[1743381189977,2.57535,1798.2,1797.9,9.90689]
[1743381190175,2.57531,1798.2,1798.1,3.2078]
[1743381190381,2.57531,1798.2,1797.9,4.6424]
[1743381190382,1.11243,1798.0,1797.9,4.6424]
[1743381190577,1.11243,1798.0,1797.9,4.153]
[1743381191682,1.11241,1798.1,1797.9,4.153]
[1743381191983,2.48193,1798.0,1797.9,7.3608]
[1743381192187,2.48193,1798.0,1797.9,4.153]
[1743381192584,1.3695,1798.0,1797.9,8.47329]
[1743381192787,1.3695,1798.0,1797.9,7.3608]
[1743381192989,2.48193,1798.0,1797.9,7.3608]
[1743381193184,1.11214,1798.5,1798.3,1.11224]
[1743381193387,1.3695,1798.4,1798.3,1.11224]
[1743381193587,1.3695,1798.4,1798.2,7.3548]
[1743381193776,1.3695,1798.4,1798.2,8.46711]
[1743381194290,2.48169,1798.4,1798.2,8.46711]
[1743381194597,1.11225,1798.3,1798.2,3.2078]
[1743381194786,1.11237,1798.1,1798.0,4.146]
[1743381195289,1.11234,1798.2,1798.0,4.146]
[1743381195491,1.5095,1798.1,1798.0,4.146]
[1743381195687,1.5095,1798.1,1798.0,8.46621]
[1743381196498,1.5095,1798.1,1798.0,7.3538]
[1743381196791,1.5095,1798.1,1798.0,8.46623]
[1743381196993,1.5095,1798.1,1798.0,7.3538]
[1743381197293,2.62187,1798.1,1798.0,7.3538]
[1743381197991,2.62187,1798.1,1798.0,3.2078]
[1743381199596,1.5095,1798.1,1798.0,3.2078]
[1743381199793,1.5095,1798.1,1798.0,4.32023]
[1743381199994,1.11237,1798.1,1798.0,7.3358]
[1743381201291,1.11237,1798.1,1798.0,3.2078]
[1743381201492,1.455,1798.2,1798.0,3.2078]
[1743381201693,1.11237,1798.1,1798.0,3.2078]
[1743381202193,1.455,1798.2,1798.0,3.2078]
[1743381202600,1.11237,1798.1,1798.0,3.2078]
[1743381202799,1.455,1798.2,1798.0,3.2078]
[1743381203103,1.11216,1798.5,1798.3,1.11222]
[1743381203295,1.11216,1798.5,1798.3,8.43602]
[1743381203498,1.11218,1798.4,1798.3,7.3238]
[1743381203690,1.11218,1798.4,1798.3,4.116]
[1743381203999,1.4218,1798.5,1798.1,3.2078]
[1743381204299,1.11231,1798.2,1798.1,3.2078]
[1743381206697,1.11237,1798.1,1798.0,1.4979]
[1743381206895,1.476,1798.1,1797.7,0.00832638]
[1743381207093,1.11255,1797.8,1797.7,0.00832638]
[1743381208502,2.78169,1797.7,1796.9,3.2078]
[1743381208802,1.11301,1797.1,1797.0,5.5406]
[1743381209003,1.11301,1797.1,1797.0,1.4276]
[1743381209903,1.11305,1797.0,1796.9,0.00832638]
[1743381210096,2.53205,1797.0,1796.9,0.00832638]
[1743381211604,5.03205,1797.0,1796.9,1e-08]
[1743381211901,1.11342,1796.4,1796.3,1.4834]
[1743381212594,4.2022,1796.7,1796.0,3.2078]
[1743381212595,1.11361,1796.1,1796.0,3.2078]
[1743381213099,0.00835027,1796.2,1796.0,3.2078]
[1743381213303,3.2078,1796.8,1796.1,4.12]
[1743381213501,3.2078,1796.8,1796.3,3.2078]
[1743381213701,1.11342,1796.4,1796.3,3.2078]
[1743381214799,1.11342,1796.4,1796.3,4.6743]
[1743381215005,1.12174027,1796.5,1796.3,1.4665]
[1743381215199,1.12174027,1796.5,1796.4,1.4665]
[1743381215399,1.12171027,1796.5,1796.4,1.4665]
[1743381215895,0.00835027,1796.5,1796.4,1.4665]
[1743381216102,0.00835027,1796.5,1796.4,2.1926]
[1743381216501,0.00835027,1796.5,1796.4,2.889]
[1743381216701,1.12171027,1796.5,1796.4,2.889]
[1743381217306,0.00835027,1796.5,1796.4,2.889]
[1743381217900,1.12171027,1796.5,1796.4,2.889]
[1743381218101,0.00835027,1796.5,1796.4,2.889]
[1743381218397,1.12171027,1796.5,1796.4,2.889]